[Event "Open Cappelle-la-Grande"]
[Date "2026.02.21"]
[White "Shchekachev, Andrei"]
[Black "Toure, Vasanth"]
[WhiteElo "2474"]
[BlackElo "2160"]
[Round "1.1.10"]
[Result "1-0"]
[TimeControl "40/5400+30:1800+30"]

Nf3 {[%clk 1:30:34]} d5 {[%clk 1:30:55]} g3 {[%clk 1:29:40]} Nf6 {[%clk
1:26:55]} Bg2 {[%clk 1:29:41]} e6 {[%clk 1:25:53]} O-O {[%clk 1:27:45]} Be7
{[%clk 1:26:06]} c4 {[%clk 1:26:35]} d4 {[%clk 1:24:33]} b4 {[%clk 1:11:26]} c5
{[%clk 1:16:11]} Bb2 {[%clk 1:09:43]} O-O {[%clk 1:12:15]} d3 {[%clk 1:09:37]}
a5 {[%clk 1:00:24]} bxc5 {[%clk 1:04:02]} Bxc5 {[%clk 1:00:24]} Ba3 {[%clk
0:52:24]} Qe7 {[%clk 0:47:35]} Qb3 {[%clk 0:43:27]} Nc6 {[%clk 0:43:37]} Bxc5
{[%clk 0:43:30]} Qxc5 {[%clk 0:44:05]} Qb5 {[%clk 0:43:47]} Qe7 {[%clk 0:41:30]}
Ne5 {[%clk 0:37:13]} Nd8 {[%clk 0:29:19]} Qb6 {[%clk 0:34:12]} Nd7 {[%clk
0:19:06]} Qxd4 {[%clk 0:34:02]} Qf6 {[%clk 0:19:27]} f4 {[%clk 0:31:45]} Nxe5
{[%clk 0:19:16]} fxe5 {[%clk 0:31:33]} Qg5 {[%clk 0:19:10]} Nc3 {[%clk 0:31:01]}
a4 {[%clk 0:11:25]} Ne4 {[%clk 0:30:01]} Qh5 {[%clk 0:11:48]} Bf3 {[%clk
0:20:58]} Nc6 {[%clk 0:11:59]} Bxh5 {[%clk 0:21:21]} Nxd4 {[%clk 0:12:28]} Nd6
{[%clk 0:21:11]} f5 {[%clk 0:11:55]} exf6 {[%clk 0:20:15]} gxf6 {[%clk 0:11:30]}
Rab1 {[%clk 0:20:28]} Ra5 {[%clk 0:10:30]} Bf3 {[%clk 0:13:34]} Re5 {[%clk
0:10:49]} Kf2 {[%clk 0:12:27]} Kg7 {[%clk 0:08:13]} Nxc8 {[%clk 0:10:44]} Rxc8
{[%clk 0:08:41]} Rxb7+ {[%clk 0:11:05]} Kg6 {[%clk 0:09:08]} Rfb1 {[%clk
0:10:52]} Rd8 {[%clk 0:09:17]} Ra7 {[%clk 0:09:17]} h5 {[%clk 0:07:23]} Rbb7
{[%clk 0:09:02]} Nxf3 {[%clk 0:05:54]} Kxf3 {[%clk 0:09:15]} Rf5+ {[%clk
0:06:19]} Kg2 {[%clk 0:09:21]} Rc5 {[%clk 0:06:46]} Rg7+ {[%clk 0:06:04]} Kf5
{[%clk 0:07:08]} Rh7 {[%clk 0:06:29]} Ke5 {[%clk 0:07:25]} Rxh5+ {[%clk
0:06:29]} f5 {[%clk 0:07:53]} Rxa4 {[%clk 0:06:29]} Rb8 {[%clk 0:08:17]} Rh4
{[%clk 0:05:58]} Kf6 {[%clk 0:08:12]} Rh6+ {[%clk 0:06:15]}

[Variant "Standard"]
[Site "Europe Echecs"]

[Event "Open Cappelle-la-Grande"]
[Date "2026.02.21"]
[White "Adrian, Claude"]
[Black "Ruzhansky, Elias"]
[WhiteElo "2159"]
[BlackElo "2462"]
[Round "1.1.11"]
[Result "0-1"]
[TimeControl "40/5400+30:1800+30"]

Nf3 {[%clk 1:30:22]} d5 {[%clk 1:30:47]} d4 {[%clk 1:30:47]} Nf6 {[%clk
1:31:08]} c4 {[%clk 1:31:14]} e6 {[%clk 1:31:25]} g3 {[%clk 1:31:20]} Bb4+
{[%clk 1:31:34]} Bd2 {[%clk 1:31:36]} Be7 {[%clk 1:31:42]} Bg2 {[%clk 1:31:15]}
O-O {[%clk 1:31:35]} O-O {[%clk 1:30:34]} c6 {[%clk 1:31:56]} Qc2 {[%clk
1:30:10]} Nbd7 {[%clk 1:32:02]} Rd1 {[%clk 1:29:19]} a5 {[%clk 1:32:06]} Nc3
{[%clk 1:25:27]} dxc4 {[%clk 1:26:35]} e4 {[%clk 1:22:04]} b5 {[%clk 1:12:37]}
Bf4 {[%clk 1:20:44]} Bb7 {[%clk 1:08:20]} a4 {[%clk 1:14:13]} Qb6 {[%clk
1:00:30]} e5 {[%clk 1:10:41]} Nd5 {[%clk 0:59:40]} Bg5 {[%clk 1:11:06]} Bb4
{[%clk 0:57:40]} Ne4 {[%clk 1:08:37]} Rfe8 {[%clk 0:55:35]} Bd2 {[%clk 1:03:42]}
Be7 {[%clk 0:54:37]} Bg5 {[%clk 0:49:37]} Bf8 {[%clk 0:52:42]} h4 {[%clk
0:49:39]} Nb4 {[%clk 0:39:12]} Qe2 {[%clk 0:49:34]} bxa4 {[%clk 0:28:49]} Qxc4
{[%clk 0:42:33]} Qb5 {[%clk 0:26:16]} Nfd2 {[%clk 0:34:53]} Nb6 {[%clk 0:25:22]}
Qc3 {[%clk 0:28:18]} N6d5 {[%clk 0:23:19]} Qf3 {[%clk 0:27:16]} Nc2 {[%clk
0:21:52]} Bf1 {[%clk 0:17:25]} Qb4 {[%clk 0:18:23]} Rac1 {[%clk 0:15:13]} Nxd4
{[%clk 0:18:36]} Qg4 {[%clk 0:15:38]} Nf5 {[%clk 0:18:24]} Nc4 {[%clk 0:14:06]}
Ba6 {[%clk 0:16:57]} Rxd5 {[%clk 0:12:31]} cxd5 {[%clk 0:16:07]} Nf6+ {[%clk
0:12:52]} Kh8 {[%clk 0:14:57]} Bd2 {[%clk 0:08:44]} Qe7 {[%clk 0:10:47]} Nxe8
{[%clk 0:06:31]} Bxc4 {[%clk 0:07:10]} Bxc4 {[%clk 0:06:31]} dxc4 {[%clk
0:07:15]} Nd6 {[%clk 0:06:27]} Nxd6 {[%clk 0:07:35]} exd6 {[%clk 0:06:53]} Qxd6
{[%clk 0:07:55]} Bc3 {[%clk 0:06:11]} a3 {[%clk 0:04:46]} bxa3 {[%clk 0:06:13]}
Qxa3 {[%clk 0:05:05]} Rc2 {[%clk 0:05:54]} Qc5 {[%clk 0:03:04]} Bd4 {[%clk
0:06:03]} Qd5 {[%clk 0:02:10]} Rxc4 {[%clk 0:06:08]} Rb8 {[%clk 0:01:20]} Kh2
{[%clk 0:05:30]} h5 {[%clk 0:29:49]} Qe2 {[%clk 0:35:04]}

[Variant "Standard"]
[Site "Europe Echecs"]

[Event "Open Cappelle-la-Grande"]
[Date "2026.02.21"]
[White "Duboue, Peio"]
[Black "Duhayon, Yves"]
[WhiteElo "2461"]
[BlackElo "2159"]
[Round "1.1.12"]
[Result "1-0"]
[TimeControl "40/5400+30:1800+30"]

e4 {[%clk 1:20:05]} e5 {[%clk 1:30:56]} Nf3 {[%clk 1:20:29]} Nc6 {[%clk
1:31:23]} d4 {[%clk 1:20:42]} exd4 {[%clk 1:31:49]} Nxd4 {[%clk 1:21:09]} Bc5
{[%clk 1:32:08]} Nb3 {[%clk 1:21:34]} Bb6 {[%clk 1:32:25]} Nc3 {[%clk 1:21:55]}
Nge7 {[%clk 1:30:00]} Qe2 {[%clk 1:19:17]} O-O {[%clk 1:29:39]} Be3 {[%clk
1:19:44]} d6 {[%clk 1:27:24]} O-O-O {[%clk 1:14:02]} f5 {[%clk 1:26:42]} Bxb6
{[%clk 1:10:52]} axb6 {[%clk 1:27:04]} f4 {[%clk 1:11:16]} fxe4 {[%clk 1:26:11]}
Qxe4 {[%clk 1:11:40]} Bf5 {[%clk 1:23:45]} Qf3 {[%clk 1:11:59]} Qd7 {[%clk
1:17:48]} h3 {[%clk 1:07:53]} Be6 {[%clk 1:09:12]} g4 {[%clk 0:54:22]} Ng6
{[%clk 0:58:42]} f5 {[%clk 0:54:24]} Bxb3 {[%clk 0:58:19]} cxb3 {[%clk 0:54:31]}
Nge5 {[%clk 0:58:38]} Qg3 {[%clk 0:52:06]} g6 {[%clk 0:51:38]} fxg6 {[%clk
0:45:59]} hxg6 {[%clk 0:47:22]} Be2 {[%clk 0:45:15]} g5 {[%clk 0:37:52]} h4
{[%clk 0:40:08]} Qg7 {[%clk 0:34:57]} Qe3 {[%clk 0:35:20]} Rae8 {[%clk 0:25:02]}
hxg5 {[%clk 0:26:53]} Nf7 {[%clk 0:20:19]} Ne4 {[%clk 0:19:17]} d5 {[%clk
0:02:19]} Rxd5 {[%clk 0:18:49]} Nd6 {[%clk 0:02:19]} Rxd6 {[%clk 0:18:18]} cxd6
{[%clk 0:02:40]} Bc4+ {[%clk 0:18:32]}

[Variant "Standard"]
[Site "Europe Echecs"]

[Event "Open Cappelle-la-Grande"]
[Date "2026.02.21"]
[White "Medghoul, Sherif"]
[Black "Bacrot, Alexandre"]
[WhiteElo "2158"]
[BlackElo "2457"]
[Round "1.1.13"]
[Result "0-1"]
[TimeControl "40/5400+30:1800+30"]

d4 {[%clk 1:30:48]} Nf6 {[%clk 1:30:54]} c4 {[%clk 1:30:59]} e6 {[%clk 1:31:19]}
Nf3 {[%clk 1:31:18]} d5 {[%clk 1:31:42]} g3 {[%clk 1:31:30]} Bb4+ {[%clk
1:32:07]} Bd2 {[%clk 1:30:31]} Be7 {[%clk 1:32:31]} Bg2 {[%clk 1:30:53]} O-O
{[%clk 1:32:57]} O-O {[%clk 1:31:19]} c6 {[%clk 1:33:24]} Qc2 {[%clk 1:30:26]}
Nbd7 {[%clk 1:33:50]} Rd1 {[%clk 1:29:47]} Ne4 {[%clk 1:32:28]} Be3 {[%clk
1:23:07]} f5 {[%clk 1:31:50]} Nbd2 {[%clk 1:18:50]} Bd6 {[%clk 1:30:16]} Bf4
{[%clk 1:06:01]} Bxf4 {[%clk 1:27:49]} gxf4 {[%clk 1:01:19]} h6 {[%clk 1:28:17]}
Ne1 {[%clk 0:44:10]} Nxd2 {[%clk 1:21:33]} Rxd2 {[%clk 0:42:01]} Nf6 {[%clk
1:21:58]} Nd3 {[%clk 0:37:54]} Ne4 {[%clk 1:22:04]} Rdd1 {[%clk 0:38:11]} Bd7
{[%clk 1:21:31]} Bf3 {[%clk 0:26:28]} Kh7 {[%clk 1:20:11]} e3 {[%clk 0:25:46]}
Rg8 {[%clk 1:19:52]} Kh1 {[%clk 0:24:44]} Qh4 {[%clk 1:18:40]} Bxe4 {[%clk
0:16:07]} dxe4 {[%clk 1:15:14]} Ne5 {[%clk 0:16:25]} Be8 {[%clk 1:15:40]} Rg1
{[%clk 0:11:43]} Bh5 {[%clk 1:15:17]} Rg3 {[%clk 0:11:12]} g5 {[%clk 1:13:24]}
Qb3 {[%clk 0:06:41]} gxf4 {[%clk 1:11:40]} Qxb7+ {[%clk 0:06:32]} Kh8 {[%clk
1:12:05]} exf4 {[%clk 0:03:43]} e3 {[%clk 1:12:29]} Rxe3 {[%clk 0:00:45]} Qxf2
{[%clk 1:09:58]} Rg3 {[%clk 0:01:03]} Rxg3 {[%clk 1:10:04]} Qxa8+ {[%clk
0:01:11]} Rg8 {[%clk 1:10:29]} Qxc6 {[%clk 0:01:36]} Be2 {[%clk 1:10:51]} Qb7
{[%clk 0:01:11]} Rg7 {[%clk 1:11:01]} Qa8+ {[%clk 0:00:37]} Kh7 {[%clk 1:11:26]}
h3 {[%clk 0:00:37]} Bf1 {[%clk 1:11:43]}

[Variant "Standard"]
[Site "Europe Echecs"]

[Event "Open Cappelle-la-Grande"]
[Date "2026.02.21"]
[White "Lamaze, Simon"]
[Black "Nicot, Valentin"]
[WhiteElo "2450"]
[BlackElo "2154"]
[Round "1.1.14"]
[Result "1-0"]
[TimeControl "40/5400+30:1800+30"]

e4 {[%clk 1:30:51]} e5 {[%clk 1:30:23]} Nf3 {[%clk 1:31:03]} Nc6 {[%clk
1:30:46]} Bc4 {[%clk 1:31:26]} Nf6 {[%clk 1:31:03]} d3 {[%clk 1:31:49]} h6
{[%clk 1:31:12]} c3 {[%clk 1:31:40]} d6 {[%clk 1:29:54]} O-O {[%clk 1:30:59]} g5
{[%clk 1:27:16]} a4 {[%clk 1:21:50]} Bg7 {[%clk 1:24:51]} Na3 {[%clk 1:21:18]}
O-O {[%clk 1:23:31]} Nc2 {[%clk 1:21:01]} Ne7 {[%clk 1:07:33]} a5 {[%clk
1:16:30]} c6 {[%clk 1:02:32]} Bb3 {[%clk 1:10:44]} Ng6 {[%clk 1:00:51]} Ne3
{[%clk 1:10:20]} Qc7 {[%clk 0:49:39]} Re1 {[%clk 1:08:52]} Kh8 {[%clk 0:44:20]}
Nd2 {[%clk 1:03:53]} Nf4 {[%clk 0:43:05]} Ndf1 {[%clk 1:04:03]} Ng8 {[%clk
0:40:00]} Ng3 {[%clk 1:00:57]} Ne7 {[%clk 0:39:55]} d4 {[%clk 0:57:39]} Be6
{[%clk 0:35:50]} Bc2 {[%clk 0:54:07]} Rad8 {[%clk 0:30:42]} Nef5 {[%clk
0:51:47]} Nxf5 {[%clk 0:30:14]} exf5 {[%clk 0:49:05]} Bd5 {[%clk 0:29:57]} f6
{[%clk 0:47:10]} Bxf6 {[%clk 0:29:19]} Bxf4 {[%clk 0:47:28]} gxf4 {[%clk
0:28:02]} Qd3 {[%clk 0:46:39]} e4 {[%clk 0:28:03]} Nxe4 {[%clk 0:46:59]} Rg8
{[%clk 0:27:47]} Nxf6 {[%clk 0:46:50]} Rxg2+ {[%clk 0:28:09]} Kf1 {[%clk
0:47:13]} Rg6 {[%clk 0:28:35]} Nxd5 {[%clk 0:47:03]} cxd5 {[%clk 0:29:01]} Qh3
{[%clk 0:45:52]} Rf6 {[%clk 0:29:19]} Qh4 {[%clk 0:45:22]} Qc4+ {[%clk 0:29:39]}
Kg1 {[%clk 0:45:45]} Rg8+ {[%clk 0:29:04]} Kh1 {[%clk 0:46:07]} Rg5 {[%clk
0:29:12]} Rg1 {[%clk 0:46:07]} Qe2 {[%clk 0:26:39]} Rxg5 {[%clk 0:46:27]} Qxc2
{[%clk 0:27:03]} Rg2 {[%clk 0:46:10]} Qf5 {[%clk 0:26:46]} f3 {[%clk 0:46:32]}
Kh7 {[%clk 0:24:58]} Rag1 {[%clk 0:46:53]} Rg6 {[%clk 0:25:18]} Rxg6 {[%clk
0:47:18]} fxg6 {[%clk 0:25:45]} Qe7+ {[%clk 0:47:42]} Kg8 {[%clk 0:26:09]} Re1
{[%clk 0:47:27]} Qd3 {[%clk 0:26:12]} Qd8+ {[%clk 0:47:51]}

[Variant "Standard"]
[Site "Europe Echecs"]

[Event "Open Cappelle-la-Grande"]
[Date "2026.02.21"]
[White "Toledo, Hillel"]
[Black "Degraeve, Remy"]
[WhiteElo "2153"]
[BlackElo "2448"]
[Round "1.1.15"]
[Result "1-0"]
[TimeControl "40/5400+30:1800+30"]

e4 {[%clk 1:30:59]} c5 {[%clk 1:20:20]} Nf3 {[%clk 1:31:19]} e6 {[%clk 1:20:46]}
c4 {[%clk 1:29:05]} Nc6 {[%clk 1:21:10]} Nc3 {[%clk 1:27:21]} Nd4 {[%clk
1:21:28]} Nxd4 {[%clk 1:26:32]} cxd4 {[%clk 1:21:53]} Ne2 {[%clk 1:26:40]} Nf6
{[%clk 1:18:38]} d3 {[%clk 1:19:36]} e5 {[%clk 1:19:00]} g3 {[%clk 1:19:00]} b5
{[%clk 1:17:39]} Bg2 {[%clk 1:17:31]} bxc4 {[%clk 1:16:01]} dxc4 {[%clk
1:17:27]} Bb4+ {[%clk 1:10:00]} Bd2 {[%clk 1:14:28]} Qa5 {[%clk 1:10:24]} Nc1
{[%clk 1:07:53]} Bb7 {[%clk 1:09:30]} f3 {[%clk 1:02:51]} d6 {[%clk 1:02:20]}
Nd3 {[%clk 1:02:36]} Bxd2+ {[%clk 1:02:44]} Qxd2 {[%clk 1:03:01]} Qxd2+ {[%clk
1:01:36]} Kxd2 {[%clk 1:03:24]} Ke7 {[%clk 1:00:19]} Rhc1 {[%clk 1:02:17]} a5
{[%clk 0:53:46]} c5 {[%clk 0:57:47]} Ba6 {[%clk 0:54:00]} f4 {[%clk 0:48:01]}
Bxd3 {[%clk 0:43:56]} cxd6+ {[%clk 0:44:17]} Kxd6 {[%clk 0:44:21]} fxe5+ {[%clk
0:44:28]} Kxe5 {[%clk 0:44:39]} Kxd3 {[%clk 0:44:51]} Rhc8 {[%clk 0:35:25]} Bh3
{[%clk 0:44:48]} Re8 {[%clk 0:35:53]} Bf5 {[%clk 0:30:57]} Kd6 {[%clk 0:23:04]}
Rc4 {[%clk 0:29:41]} g6 {[%clk 0:20:58]} Bh3 {[%clk 0:20:03]} Rad8 {[%clk
0:16:04]} Re1 {[%clk 0:17:04]} h5 {[%clk 0:06:23]} Kxd4 {[%clk 0:15:45]} Ng4
{[%clk 0:05:47]} Bxg4 {[%clk 0:13:49]} hxg4 {[%clk 0:06:08]} Ke3 {[%clk
0:12:08]} Rb8 {[%clk 0:04:02]} Rd1+ {[%clk 0:11:58]} Ke7 {[%clk 0:01:57]} Rd2
{[%clk 0:09:45]} Rec8 {[%clk 0:01:50]} Rxc8 {[%clk 0:08:07]} Rxc8 {[%clk
0:02:19]} Kf4 {[%clk 0:08:01]} Rc4 {[%clk 0:02:14]} Re2 {[%clk 0:07:51]} f5
{[%clk 0:01:19]} b3 {[%clk 0:07:56]} Rb4 {[%clk 0:01:20]} Kg5 {[%clk 0:01:30]}
fxe4 {[%clk 0:01:46]} Kf4 {[%clk 0:01:22]} e3+ {[%clk 0:00:33]} Kxe3 {[%clk
0:01:42]} Ke6 {[%clk 0:00:41]} Rc2 {[%clk 0:01:08]} Kd5 {[%clk 0:00:48]} Rf2
{[%clk 0:00:44]} Re4+ {[%clk 0:16:23]} Kd3 {[%clk 0:30:26]} Re5 {[%clk 0:14:45]}
Rf4 {[%clk 0:30:35]} Rg5 {[%clk 0:15:13]} Ra4 {[%clk 0:29:23]} Kd6 {[%clk
0:09:31]} Ke3 {[%clk 0:29:16]} Rh5 {[%clk 0:05:13]} Kf4 {[%clk 0:29:32]} Kc6
{[%clk 0:05:11]} Kxg4 {[%clk 0:29:48]} Kb5 {[%clk 0:05:39]} h4 {[%clk 0:30:01]}
Rd5 {[%clk 0:06:03]} Re4 {[%clk 0:29:37]} Rd2 {[%clk 0:06:19]} a4+ {[%clk
0:29:31]} Kc5 {[%clk 0:06:45]} Re5+ {[%clk 0:29:50]} Kb6 {[%clk 0:07:06]} Re6+
{[%clk 0:29:48]} Kc5 {[%clk 0:07:31]} Rxg6 {[%clk 0:29:59]} Rd4+ {[%clk
0:07:57]} Kh5 {[%clk 0:29:47]} Kd5 {[%clk 0:07:43]}

[Variant "Standard"]
[Site "Europe Echecs"]

[Event "Open Cappelle-la-Grande"]
[Date "2026.02.21"]
[White "Levin, Guy"]
[Black "Roger, Mehdi"]
[WhiteElo "2440"]
[BlackElo "2147"]
[Round "1.1.16"]
[Result "1-0"]
[TimeControl "40/5400+30:1800+30"]

d4 {[%clk 1:30:44]} Nf6 {[%clk 1:27:07]} Nf3 {[%clk 1:31:05]} g6 {[%clk
1:27:17]} g3 {[%clk 1:30:30]} Bg7 {[%clk 1:27:23]} Bg2 {[%clk 1:30:53]} O-O
{[%clk 1:24:34]} O-O {[%clk 1:31:11]} d5 {[%clk 1:24:40]} c4 {[%clk 1:31:22]} c6
{[%clk 1:24:51]} a4 {[%clk 1:31:35]} Bf5 {[%clk 1:19:23]} Nc3 {[%clk 1:29:52]}
Nbd7 {[%clk 1:14:00]} a5 {[%clk 1:28:40]} e6 {[%clk 0:55:40]} Qa4 {[%clk
1:13:55]} Ne4 {[%clk 0:47:40]} Nh4 {[%clk 0:57:08]} Nxc3 {[%clk 0:37:28]} bxc3
{[%clk 0:57:28]} b5 {[%clk 0:18:36]} cxb5 {[%clk 0:55:54]} cxb5 {[%clk 0:19:00]}
Qxb5 {[%clk 0:55:58]} Rb8 {[%clk 0:13:33]} Qa4 {[%clk 0:54:47]} Rc8 {[%clk
0:10:00]} Nxf5 {[%clk 0:52:08]} gxf5 {[%clk 0:10:24]} Bd2 {[%clk 0:51:21]} Rc4
{[%clk 0:10:32]} Qa2 {[%clk 0:51:10]} Nf6 {[%clk 0:08:28]} Rfb1 {[%clk 0:44:50]}
Ne4 {[%clk 0:08:15]} Bxe4 {[%clk 0:43:53]} fxe4 {[%clk 0:08:40]} a6 {[%clk
0:44:09]} Qd6 {[%clk 0:02:44]} Rb7 {[%clk 0:43:45]} Ra8 {[%clk 0:02:52]} Rab1
{[%clk 0:39:56]} h5 {[%clk 0:02:38]} Bf4 {[%clk 0:33:38]} e5 {[%clk 0:02:37]}
Bxe5 {[%clk 0:33:35]} Bxe5 {[%clk 0:03:02]} dxe5 {[%clk 0:33:59]} Qxe5 {[%clk
0:03:11]} R1b5 {[%clk 0:34:19]} Rac8 {[%clk 0:02:21]} Qd2 {[%clk 0:32:33]} R8c5
{[%clk 0:00:31]} Rxc5 {[%clk 0:31:23]} Rxc5 {[%clk 0:00:57]} Qd4 {[%clk
0:31:42]}

[Variant "Standard"]
[Site "Europe Echecs"]

[Event "Open Cappelle-la-Grande"]
[Date "2026.02.22"]
[White "Pranesh M"]
[Black "Coiffait, Pierre-Basile"]
[WhiteElo "2627"]
[BlackElo "2313"]
[Round "2.2.1"]
[Result "1-0"]
[TimeControl "40/5400+30:1800+30"]

e4 {[%clk 1:30:58]} e5 {[%clk 1:30:51]} Nf3 {[%clk 1:31:21]} Nc6 {[%clk
1:31:14]} Bc4 {[%clk 1:31:44]} Bc5 {[%clk 1:31:27]} c3 {[%clk 1:32:02]} Nf6
{[%clk 1:31:42]} d3 {[%clk 1:32:20]} a6 {[%clk 1:31:57]} Bg5 {[%clk 1:32:35]} h6
{[%clk 1:26:25]} Bh4 {[%clk 1:32:26]} d6 {[%clk 1:14:27]} Nbd2 {[%clk 1:32:40]}
Ba7 {[%clk 1:12:11]} a4 {[%clk 1:32:39]} g5 {[%clk 0:59:43]} Bg3 {[%clk
1:32:38]} Nh5 {[%clk 0:51:11]} Nxe5 {[%clk 1:31:07]} Nxg3 {[%clk 0:48:47]} Bxf7+
{[%clk 1:31:14]} Kf8 {[%clk 0:47:33]} Ng6+ {[%clk 1:31:25]} Kxf7 {[%clk
0:45:36]} Nxh8+ {[%clk 1:31:38]} Qxh8 {[%clk 0:45:38]} hxg3 {[%clk 1:31:44]} Qf6
{[%clk 0:41:02]} d4 {[%clk 1:30:05]} Kg7 {[%clk 0:38:07]} O-O {[%clk 1:29:24]}
Bd7 {[%clk 0:33:10]} b4 {[%clk 1:26:44]} Ne7 {[%clk 0:26:53]} Qe2 {[%clk
1:16:58]} Rh8 {[%clk 0:21:01]} b5 {[%clk 1:15:48]} Bc8 {[%clk 0:16:59]} f4
{[%clk 1:14:53]} g4 {[%clk 0:13:37]} f5 {[%clk 1:12:20]} h5 {[%clk 0:13:25]} e5
{[%clk 1:09:18]} dxe5 {[%clk 0:13:24]} Ne4 {[%clk 1:09:39]} exd4 {[%clk
0:13:23]} Qc4 {[%clk 1:08:27]} dxc3+ {[%clk 0:08:40]} Kh2 {[%clk 1:08:53]} Qe5
{[%clk 0:06:49]} f6+ {[%clk 1:07:37]} Kg6 {[%clk 0:06:41]} fxe7 {[%clk 1:07:38]}
Be6 {[%clk 0:06:22]} Qd3 {[%clk 1:06:40]} h4 {[%clk 0:03:04]} Rf4 {[%clk
1:04:35]} Bf5 {[%clk 0:01:36]} Raf1 {[%clk 1:03:27]} hxg3+ {[%clk 0:00:56]} Kxg3
{[%clk 1:03:54]} c2 {[%clk 0:00:47]} Qxc2 {[%clk 0:54:18]} Be3 {[%clk 0:00:35]}
Qc3 {[%clk 0:52:01]} Bxf4+ {[%clk 0:00:32]} Rxf4 {[%clk 0:49:53]} Qxc3+ {[%clk
0:00:56]} Nxc3 {[%clk 0:50:20]} Re8 {[%clk 0:00:45]} bxa6 {[%clk 0:48:52]} bxa6
{[%clk 0:01:08]} Nd5 {[%clk 0:48:33]} c6 {[%clk 0:00:47]} Ne3 {[%clk 0:48:27]}
Bd7 {[%clk 0:00:34]} Re4 {[%clk 0:47:43]} Kf7 {[%clk 0:00:33]} Nxg4 {[%clk
0:47:50]} Rxe7 {[%clk 0:28:39]} Ne5+ {[%clk 1:18:10]} Kf6 {[%clk 0:23:41]} Kf4
{[%clk 1:18:20]} Be8 {[%clk 0:17:49]} a5 {[%clk 1:16:09]} Rb7 {[%clk 0:13:31]}
g4 {[%clk 1:14:00]} c5 {[%clk 0:08:07]} g5+ {[%clk 1:10:03]} Kg7 {[%clk
0:08:30]} Kf5 {[%clk 1:09:52]} Rb5 {[%clk 0:04:23]} Rh4 {[%clk 1:10:01]} Rxa5
{[%clk 0:03:33]} g6 {[%clk 1:09:58]} Bxg6+ {[%clk 0:02:45]} Nxg6 {[%clk
1:10:19]} Ra1 {[%clk 0:01:54]} Ne5 {[%clk 1:10:25]} Rf1+ {[%clk 0:01:25]} Ke6
{[%clk 1:10:54]} a5 {[%clk 0:01:09]} Rh2 {[%clk 1:10:07]} a4 {[%clk 0:01:25]}
Rg2+ {[%clk 1:10:32]} Kh6 {[%clk 0:01:18]} Ng4+ {[%clk 1:10:42]} Kh5 {[%clk
0:01:30]} Ne3 {[%clk 1:10:55]} Re1 {[%clk 0:00:36]} Kf5 {[%clk 1:11:15]} Kh6
{[%clk 0:00:33]} Kf6 {[%clk 1:11:38]} Kh7 {[%clk 0:00:34]} Kf7 {[%clk 1:11:52]}
Rh1 {[%clk 0:00:31]} Ng4 {[%clk 1:11:54]} Kh8 {[%clk 0:00:33]} Nf6 {[%clk
1:12:19]}

[Variant "Standard"]
[Site "Europe Echecs"]

[Event "Open Cappelle-la-Grande"]
[Date "2026.02.22"]
[White "El Zein, Zayne-Eddine"]
[Black "Pranav Anand"]
[WhiteElo "2294"]
[BlackElo "2606"]
[Round "2.2.2"]
[Result "0-1"]
[TimeControl "40/5400+30:1800+30"]

d4 {[%clk 1:30:55]} Nf6 {[%clk 1:30:52]} Nf3 {[%clk 1:31:17]} e6 {[%clk
1:31:16]} e3 {[%clk 1:31:17]} b6 {[%clk 1:31:36]} Bd3 {[%clk 1:31:33]} Bb7
{[%clk 1:32:00]} Nbd2 {[%clk 1:31:10]} d5 {[%clk 1:31:34]} Qe2 {[%clk 1:30:12]}
c5 {[%clk 1:23:45]} c3 {[%clk 1:17:06]} Nc6 {[%clk 1:18:45]} O-O {[%clk
1:14:26]} Be7 {[%clk 1:14:34]} dxc5 {[%clk 1:12:51]} bxc5 {[%clk 1:14:26]} e4
{[%clk 1:13:10]} O-O {[%clk 1:14:49]} e5 {[%clk 1:11:06]} Nd7 {[%clk 1:14:38]}
Re1 {[%clk 1:10:19]} c4 {[%clk 1:05:13]} Bc2 {[%clk 1:08:41]} a5 {[%clk
1:04:13]} b3 {[%clk 0:52:56]} cxb3 {[%clk 1:02:19]} axb3 {[%clk 0:48:49]} Ba6
{[%clk 0:59:57]} Qe3 {[%clk 0:47:46]} Qc7 {[%clk 0:53:11]} Ba3 {[%clk 0:41:12]}
h6 {[%clk 0:48:27]} Bxe7 {[%clk 0:39:53]} Nxe7 {[%clk 0:48:48]} Ra4 {[%clk
0:39:32]} Rfc8 {[%clk 0:44:38]} Rg4 {[%clk 0:34:26]} Qxc3 {[%clk 0:40:06]} Qxh6
{[%clk 0:22:13]} Ng6 {[%clk 0:40:18]} Rxg6 {[%clk 0:18:46]} fxg6 {[%clk
0:40:41]} Qh3 {[%clk 0:19:12]} Nf8 {[%clk 0:38:45]} Bxg6 {[%clk 0:19:34]} Bd3
{[%clk 0:35:51]} Bh5 {[%clk 0:18:37]} Bf5 {[%clk 0:34:35]} Qh4 {[%clk 0:12:20]}
Ra7 {[%clk 0:31:32]} g4 {[%clk 0:10:00]} Bd3 {[%clk 0:29:07]} g5 {[%clk
0:07:50]} Bf5 {[%clk 0:24:22]} Qg3 {[%clk 0:06:37]} g6 {[%clk 0:23:40]} Bg4
{[%clk 0:07:02]} Rf7 {[%clk 0:24:01]} Bxf5 {[%clk 0:05:21]} Rxf5 {[%clk
0:24:15]} h4 {[%clk 0:05:44]} Rc7 {[%clk 0:21:03]} Kg2 {[%clk 0:05:55]} Rcf7
{[%clk 0:21:01]} Re2 {[%clk 0:04:38]} Nd7 {[%clk 0:17:42]} Re3 {[%clk 0:02:44]}
Qb4 {[%clk 0:17:54]} h5 {[%clk 0:02:25]} gxh5 {[%clk 0:17:40]} g6 {[%clk
0:00:49]} Rg7 {[%clk 0:18:04]}

[Variant "Standard"]
[Site "Europe Echecs"]